bitfinex/quotes_ETHUSD_20250725
["timestamp","ask_amount","ask_price","bid_price","bid_amount"]
[1753450779186,3.0,3693.5,3692.7,7.6390427]
[1753450779187,3.0,3693.5,3692.8,2.70794559]
[1753450779393,2.70945162,3693.6,3692.7,4.931]
[1753450779590,0.32794516,3693.6,3692.7,4.931]
[1753450779796,0.002,3693.6,3692.7,5.3883]
[1753450780104,0.002,3693.6,3692.8,0.48437972]
[1753450780262,0.002,3693.6,3693.5,2.70745904]
[1753450780465,0.002,3693.6,3693.5,2.73453363]
[1753450780660,0.803,3695.2,3694.2,2.70694602]
[1753450780963,1e-08,3694.3,3694.2,7.62694602]
[1753450781168,3.50857627,3696.1,3694.3,2.70687274]
[1753450781378,3.50857627,3696.1,3694.2,5.869]
[1753450781379,0.803,3696.1,3694.4,0.02706799]
[1753450781582,0.803,3696.1,3694.4,3.81359524]
[1753450781780,0.803,3696.1,3694.4,1.0797668]
[1753450781964,2.70600437,3695.5,3694.1,0.7859]
[1753450782179,4.02262596,3695.8,3694.3,0.8038]
[1753450782499,0.8266,3695.8,3694.4,0.4573]
[1753450782702,0.7875,3696.5,3695.5,2.70594136]
[1753450782909,2.70566547,3696.0,3695.1,4.922]
[1753450783091,0.42733061,3696.4,3695.2,0.8232]
[1753450783413,2.70542585,3696.3,3695.5,2.70593159]
[1753450783585,0.002,3695.8,3695.6,2.70590063]
[1753450783761,0.002,3695.8,3695.2,1.2805]
[1753450783962,0.002,3695.8,3695.7,2.70584733]
[1753450784605,0.002,3695.8,3695.6,2.70589845]
[1753450784989,0.002,3695.8,3695.4,4.907]
[1753450785193,0.27077534,3695.7,3694.7,1.2814]
[1753450785509,0.002,3695.8,3695.4,2.70600241]
[1753450785669,0.002,3695.8,3695.7,2.70584733]
[1753450786106,0.002,3695.8,3695.7,3.16314733]
[1753450786278,0.002,3695.8,3695.2,0.4573]
[1753450786481,0.002,3695.8,3695.3,7.60912009]
[1753450786682,0.57076899,3695.7,3695.3,4.903]
[1753450787287,0.002,3695.8,3695.3,4.903]
[1753450787692,2.70584733,3695.7,3694.8,0.4573]
[1753450787917,2.70601667,3695.5,3694.9,4.897]
[1753450788118,0.1352,3695.2,3694.7,2.84175734]
[1753450788332,0.1352,3695.2,3695.0,4.893]
[1753450788524,0.1352,3695.2,3694.8,2.70650643]
[1753450788708,0.1352,3695.2,3694.9,4.893]
[1753450789417,0.1352,3695.2,3694.3,0.4573]
[1753450789418,3.25607653,3695.4,3694.8,4.888]
[1753450789720,0.55,3695.4,3694.8,4.888]
[1753450789922,0.1352,3694.9,3694.8,4.888]
[1753450791015,0.1352,3694.9,3694.8,7.59450644]
[1753450791202,0.1352,3694.9,3694.8,5.3453]
[1753450791609,0.1352,3694.9,3693.5,0.4573]
[1753450791822,0.1352,3694.2,3693.7,0.1352]
[1753450792024,0.1352,3694.2,3693.6,5.0102]
[1753450792227,0.1352,3694.2,3693.7,2.70725451]
[1753450792445,0.1352,3694.2,3693.6,7.71756639]
[1753450792607,0.1352,3694.2,3693.6,7.7175592]
[1753450792803,0.1352,3694.2,3693.8,2.70719036]
[1753450793002,0.1352,3694.2,3693.7,2.70729399]
[1753450793230,0.1352,3694.2,3693.8,2.70722623]
[1753450793937,0.1352,3694.2,3693.6,5.0102]
[1753450794444,0.1352,3693.9,3693.8,2.70720452]
[1753450794603,0.8091,3694.4,3693.9,2.70714363]
[1753450794811,0.1352,3694.1,3693.9,2.70714363]
[1753450795008,0.1352,3694.1,3694.0,3.16439258]
[1753450795315,0.1352,3694.1,3693.8,7.56723283]
[1753450795316,0.1352,3694.1,3693.8,4.86]
[1753450795507,2.70731002,3693.8,3693.2,6.504]
[1753450795851,0.1352,3693.7,3693.3,4.857]
[1753450796017,0.1352,3693.5,3693.3,4.857]
[1753450796635,0.1352,3693.5,3693.3,8.02184683]
[1753450796950,3.0,3694.6,3693.3,8.02184683]
[1753450796951,0.7806,3694.7,3693.5,2.70740147]
[1753450797149,0.55,3694.5,3693.4,0.4573]
[1753450797317,0.7893,3694.6,3693.4,0.4573]
[1753450797318,0.1352,3693.6,3693.4,0.4573]
[1753450797505,0.1352,3693.6,3693.2,6.504]
[1753450797506,0.1352,3693.6,3693.5,4.847]
[1753450797706,2.70726256,3693.8,3693.5,4.847]
[1753450797912,0.1352,3693.6,3693.5,4.847]
[1753450798115,0.48295,3694.4,3693.5,8.01175904]
[1753450798443,0.1352,3693.7,3693.6,2.70736025]
[1753450798611,0.1352,3693.7,3693.6,3.16466025]
[1753450798813,0.1352,3693.7,3693.2,6.6392]
[1753450798814,0.1352,3693.7,3693.2,6.504]
[1753450799041,0.1352,3693.7,3693.3,7.54760497]
[1753450799214,0.1352,3693.5,3693.3,4.84]
[1753450799708,0.1352,3693.5,3693.3,7.54760045]
[1753450799910,0.1352,3693.5,3693.2,6.504]
[1753450800143,3.0,3693.4,3693.3,4.834]
[1753450800451,2.7069909,3694.2,3693.3,5.2913]
[1753450800743,0.1352,3693.7,3693.5,2.70741212]
[1753450800944,0.1352,3693.7,3693.6,4.832]
[1753450801147,3.0,3693.3,3692.5,0.1352]
[1753450801315,2.70775229,3693.1,3692.1,0.4573]
[1753450801510,2.70775229,3693.1,3691.9,6.501]
[1753450801511,0.55,3692.9,3692.0,0.1352]
[1753450801713,0.55,3692.9,3691.6,0.001]
[1753450801714,6.25877915,3691.7,3691.6,0.001]
[1753450801976,7.06747915,3691.7,3690.9,0.001]
[1753450802245,3.0,3691.0,3690.9,0.001]
[1753450802407,0.8087,3691.7,3690.9,0.001]
[1753450802606,0.8087,3691.7,3690.9,2.71031089]
[1753450803134,0.8087,3691.7,3690.9,0.001]
[1753450803135,2.70929287,3691.0,3690.9,0.001]
[1753450803354,5.70929287,3691.0,3690.9,0.001]
[1753450803538,0.4902,3692.9,3690.9,0.001]
[1753450803843,0.8155,3692.8,3691.8,2.70869619]
[1753450804012,0.55,3692.5,3691.7,2.70876181]
[1753450804210,0.8155,3692.8,3691.7,0.02708779]
[1753450804415,0.8155,3692.8,3691.1,0.752]
[1753450804416,0.8017,3693.3,3691.9,2.70863241]
[1753450804723,0.8017,3693.3,3691.5,0.4917]
[1753450804724,0.8017,3693.3,3692.2,0.7884]
[1753450804927,0.20304038,3693.5,3693.2,2.70762101]
[1753450805132,0.20304038,3693.5,3693.1,4.84]
[1753450805452,0.20304038,3693.5,3693.4,2.70753235]
[1753450805621,0.20304038,3693.5,3693.1,4.84]
[1753450805824,0.20304038,3693.5,3693.3,2.70760171]
[1753450806044,0.20304038,3693.5,3693.2,2.70765782]
[1753450806531,0.20304038,3693.5,3693.4,2.70753235]
[1753450806738,0.20304038,3693.5,3692.0,0.4917]
[1753450806949,3.0,3693.2,3692.5,0.4421]
[1753450807191,0.55,3693.4,3692.5,0.4421]
[1753450807373,3.0,3693.3,3692.5,0.4421]
[1753450807684,2.7079982,3692.8,3692.1,4.832]
[1753450808045,0.55,3692.8,3692.1,4.832]
[1753450808243,0.7924,3693.2,3692.2,0.46918412]
[1753450808463,3.0,3693.0,3692.3,2.70832654]
[1753450808697,3.0,3693.0,3692.2,0.4421]
[1753450808698,0.55,3693.0,3692.2,0.4421]
[1753450808899,0.55,3693.0,3692.3,4.827]
[1753450809069,3.0,3692.8,3692.3,4.827]
[1753450809268,2.70797919,3692.8,3692.3,4.827]
[1753450809503,6.25782997,3693.0,3692.3,4.827]
[1753450809675,3.0,3692.8,3692.3,4.827]
[1753450809876,3.25784821,3693.0,3692.3,4.827]
[1753450810212,2.70810412,3692.7,3692.3,4.827]
[1753450810509,3.0,3692.8,3691.7,4.816]
[1753450810810,0.55,3692.5,3691.7,4.816]
[1753450811013,0.55,3692.5,3690.6,2.7095399]
[1753450811014,0.7595,3692.4,3690.8,0.4421]
[1753450811182,0.7595,3692.4,3689.9,3.17197711]
[1753450811183,2.70906481,3691.4,3689.9,3.17197711]
[1753450811384,3.55,3692.0,3690.7,7.52749896]
[1753450811577,2.70905711,3691.4,3690.7,4.818]
[1753450811914,0.1352,3691.2,3690.7,4.818]
[1753450812715,0.4993,3691.9,3690.6,4.812]
[1753450812875,2.7090684,3691.4,3690.7,2.70949923]
[1753450813075,5.70907481,3691.3,3690.6,7.52156451]
[1753450813396,0.55,3692.1,3691.0,0.4421]
[1753450813598,3.50992,3692.3,3691.4,2.70893092]
[1753450813799,0.50992,3692.3,3691.2,4.816]
[1753450813999,5.70861069,3692.0,3691.3,2.70906734]
[1753450814302,5.70861069,3692.0,3691.2,2.70913677]
[1753450814303,3.2586367,3691.9,3691.2,2.70913677]
[1753450814509,0.7595,3692.2,3691.0,4.813]
[1753450814711,3.0,3692.1,3691.0,4.813]
[1753450814931,0.4993,3692.8,3691.0,4.813]
[1753450814932,1.3042,3692.8,3691.1,0.46919219]
[1753450815107,0.8049,3692.8,3691.3,2.70900757]
[1753450815312,2.70853826,3692.1,3691.4,4.815]
[1753450815502,0.35128121,3692.7,3691.4,4.815]
[1753450815503,0.55,3692.3,3691.4,4.815]
[1753450815827,3.0,3692.5,3691.6,2.70885253]
[1753450816122,0.8049,3692.8,3691.8,2.70870578]
[1753450816316,0.8049,3692.8,3691.2,3.5343757]
[1753450816317,0.8049,3692.8,3691.2,0.4421]
[1753450816518,0.816,3691.5,3690.2,0.8139]
[1753450816812,2.70907268,3691.3,3690.5,4.821]
[1753450816974,0.816,3691.5,3690.5,4.821]
[1753450817175,0.4993,3692.0,3691.0,0.4421]
[1753450817176,0.7559,3692.0,3691.0,0.4421]
[1753450817411,0.7559,3692.0,3691.1,4.818]
[1753450817596,3.0,3691.7,3691.1,4.818]
[1753450817801,5.708795,3691.7,3691.0,3.15138649]
[1753450817998,2.70879077,3691.7,3691.0,3.15138494]
[1753450818197,2.70877257,3691.8,3691.1,4.816]
[1753450818404,2.70904806,3691.4,3690.6,0.001]
[1753450818603,3.55,3691.9,3691.2,4.814]
[1753450818805,3.55,3691.9,3690.6,0.001]
[1753450818806,3.25929287,3691.0,3690.6,0.001]
[1753450818981,3.25929287,3691.0,3689.7,0.7575]
[1753450818982,2.71039436,3689.5,3689.4,0.001]
[1753450819185,7.06379436,3689.5,3689.4,1e-08]
[1753450819526,7.96430337,3689.5,3689.4,1e-08]
[1753450819878,6.91500337,3689.5,3689.4,1e-08]
[1753450820111,7.06379436,3689.5,3689.4,1e-08]
[1753450820277,7.56309436,3689.5,3689.4,1e-08]
[1753450820683,3.0,3689.5,3689.4,1e-08]
[1753450820883,6.26039436,3689.5,3689.4,1e-08]
[1753450821494,3.0,3689.5,3689.4,1e-08]
[1753450821816,3.5049131,3690.7,3689.6,2.71024985]
[1753450822031,3.5049131,3690.7,3689.6,2.7103209]
[1753450822032,0.67135829,3690.6,3689.6,2.7103209]
[1753450822230,0.7954,3690.7,3689.8,2.71011942]
[1753450822431,0.7954,3690.7,3689.5,4.845]
[1753450822603,0.1352,3689.9,3689.8,2.71017399]
[1753450822794,0.1352,3690.4,3690.2,2.709808]
[1753450823006,0.1352,3690.4,3690.2,2.70983871]
[1753450823189,0.1352,3690.4,3689.8,0.4421]
[1753450823391,3.55,3690.6,3689.0,0.4421]
[1753450823609,0.1352,3689.5,3689.4,2.71041169]
[1753450823796,0.1352,3689.5,3689.4,3.15251169]
[1753450823996,0.1352,3689.9,3689.7,2.7101934]
[1753450824198,0.1352,3689.9,3689.8,3.15227399]
[1753450824507,0.4993,3691.2,3689.8,5.744]
[1753450824508,0.1352,3690.1,3689.8,5.744]
[1753450824711,8.3723769,3692.5,3690.0,0.7837]
[1753450824712,0.8272,3691.7,3690.0,0.7837]
[1753450825020,0.1352,3691.2,3690.6,0.1352]
[1753450825231,0.1352,3691.2,3690.9,2.70935351]
[1753450825386,0.1352,3691.2,3690.6,0.1352]
[1753450825584,0.1352,3691.2,3690.9,2.7093116]
[1753450825783,0.8272,3691.7,3690.7,0.4421]
[1753450825784,2.70887656,3691.6,3690.7,0.4421]
[1753450826029,0.1352,3691.0,3690.8,2.70938432]
[1753450826180,0.1352,3691.0,3690.9,2.70936627]
[1753450826385,0.1352,3691.0,3690.7,3.151611]
[1753450826616,0.8272,3691.7,3690.8,0.4421]
[1753450826814,0.55,3691.6,3690.0,1.2258]
[1753450827010,2.70967057,3690.5,3689.8,2.7101516]
[1753450827227,2.70971683,3690.5,3689.8,2.71014885]
[1753450827418,2.70956216,3690.7,3689.7,7.5452382]
[1753450827620,0.18765,3691.5,3689.8,0.46920173]
[1753450827785,2.70924114,3691.1,3690.4,2.70973336]
[1753450827981,2.70919556,3691.2,3690.4,0.4421]
[1753450828186,2.70925002,3691.1,3690.4,0.4421]
[1753450828385,2.70945178,3690.8,3690.0,2.7100271]
[1753450828617,3.0,3691.2,3689.9,3.15218597]
[1753450828819,2.709493,3690.8,3690.0,2.7100271]
[1753450828995,3.55,3691.0,3689.9,0.4421]
[1753450829194,2.70968438,3690.5,3689.9,0.4421]
[1753450829407,3.55,3691.0,3689.9,0.4421]
[1753450829624,2.7100051,3690.1,3689.4,5.60780001]
[1753450829913,2.71011056,3689.9,3689.4,5.60780001]
[1753450830222,0.55,3690.6,3689.4,1e-08]
[1753450830223,2.71039436,3689.5,3689.4,1e-08]
[1753450830396,2.71019412,3689.8,3689.4,1e-08]
[1753450830605,2.71024744,3689.7,3689.4,1e-08]
[1753450830909,6.25995365,3690.1,3689.4,1e-08]
[1753450831087,2.71033324,3689.6,3689.4,1e-08]
[1753450831284,5.70992414,3690.2,3689.4,1e-08]
[1753450831509,2.71039436,3689.5,3689.4,1e-08]
[1753450831720,3.0,3689.5,3689.4,1e-08]
[1753450831922,5.71039436,3689.5,3689.4,1e-08]
[1753450832103,3.0,3689.5,3689.4,1e-08]
[1753450832305,0.55,3689.9,3689.4,1e-08]
[1753450832528,2.71018667,3689.8,3689.4,1e-08]
[1753450832821,2.70984676,3690.3,3689.5,0.4421]
[1753450832822,3.0,3690.3,3689.5,0.4421]
[1753450833027,2.71006682,3690.0,3689.5,0.4421]
[1753450833224,5.71039436,3689.5,3689.4,1e-08]
[1753450833433,3.0,3689.5,3689.4,1e-08]
[1753450833617,0.55,3690.3,3689.4,0.44210001]
[1753450833822,3.0,3689.9,3689.4,0.44210001]
[1753450834135,2.71037003,3689.6,3689.4,1e-08]
[1753450834333,0.55,3690.3,3689.4,1e-08]
[1753450834549,0.14098561,3692.6,3689.4,1e-08]
[1753450834550,0.7544,3690.7,3689.4,1e-08]
[1753450834697,2.70958651,3690.6,3689.7,2.71021946]
[1753450835099,2.70975878,3690.4,3689.7,2.71021946]
[1753450835306,2.70986715,3690.3,3689.6,2.71026672]
[1753450835628,2.70986715,3690.3,3689.5,0.4421]
[1753450835629,0.55,3690.6,3689.5,0.4421]
[1753450835830,2.71008698,3690.0,3689.4,1e-08]
[1753450836032,0.7544,3690.7,3689.5,0.4421]
[1753450836223,0.4993,3690.9,3689.9,2.71007908]
[1753450836531,0.4993,3690.9,3689.9,2.71008667]
[1753450836532,3.0,3690.4,3689.9,2.71008667]
[1753450836719,0.806,3691.2,3690.0,0.4491]
[1753450836921,0.1352,3690.5,3690.0,1.0817]
[1753450837146,2.70921175,3691.2,3690.1,0.4491]
[1753450837312,0.1352,3690.8,3690.4,2.70973336]
[1753450837633,2.70973336,3690.4,3690.3,4.807]
[1753450837823,0.1352,3690.4,3690.3,4.807]
[1753450838453,0.1352,3690.4,3690.3,0.4491]
[1753450838747,0.1352,3690.4,3688.6,0.001]
[1753450838748,0.1352,3690.4,3689.7,4.8]
[1753450838894,2.70995918,3690.1,3689.7,4.8]
[1753450839093,0.7614,3690.7,3689.8,0.4491]
[1753450839328,0.1352,3690.2,3689.8,0.4491]
[1753450839527,3.0,3691.0,3689.7,4.9352]
[1753450839528,2.70985812,3690.3,3689.7,4.8]
[1753450839730,0.1352,3690.0,3689.7,4.8]
[1753450839897,0.1352,3690.0,3689.8,0.4491]
[1753450840097,0.55,3691.1,3689.9,0.9465]
[1753450840299,0.1352,3690.4,3689.9,1.0817]
[1753450840497,0.4841,3690.9,3689.5,2.71032713]
[1753450840706,0.55,3690.8,3689.7,4.792]
[1753450840929,0.1352,3690.2,3689.8,2.71015705]
[1753450841147,3.0,3690.8,3689.9,0.9465]
[1753450841308,3.0,3690.9,3690.2,0.1352]
[1753450841497,0.1352,3690.7,3690.3,3.5100581]
[1753450841698,0.1352,3690.7,3690.4,0.4491]
[1753450841920,0.1352,3691.0,3690.8,2.70940863]
[1753450842131,0.7652,3691.7,3690.5,0.4491]
[1753450842337,0.7652,3691.7,3690.4,0.1352]
[1753450842338,0.1352,3690.9,3690.4,0.1352]
[1753450842515,0.55,3690.7,3689.7,0.7508]
[1753450842903,2.70988326,3690.2,3689.7,0.7508]
[1753450843100,2.70982178,3690.3,3689.8,0.4491]
[1753450843298,2.70982178,3690.3,3689.7,0.7508]
[1753450843299,3.0,3690.6,3689.9,0.4491]
[1753450843541,2.70959791,3690.6,3689.9,3.15913369]
[1753450843845,2.70985782,3690.3,3689.7,0.7508]
[1753450844253,3.0,3690.5,3689.7,0.7508]
[1753450844408,2.71009396,3690.0,3689.5,0.4491]
[1753450845114,2.71009396,3690.0,3689.4,7.50345728]
[1753450845115,3.57095865,3690.5,3689.4,1e-08]
[1753450845116,2.71039436,3689.5,3689.4,1e-08]
[1753450845325,6.53839436,3689.5,3689.3,0.001]
[1753450845642,2.71098218,3688.7,3688.6,0.001]
[1753450845942,6.68371442,3688.7,3688.6,0.001]
[1753450846141,7.16781442,3688.7,3688.6,0.001]
[1753450846701,7.45821442,3688.7,3688.6,0.001]
[1753450846943,7.16781442,3688.7,3688.6,0.001]
[1753450847302,5.71098218,3688.7,3688.6,0.001]
[1753450847502,0.55,3689.2,3688.6,0.001]
[1753450847726,3.0,3688.9,3688.6,0.001]
[1753450847930,2.71096203,3688.8,3688.6,0.001]
[1753450848153,2.71098218,3688.7,3688.6,0.001]
[1753450848304,7.2872766,3688.7,3688.6,0.001]
[1753450848506,6.8031766,3688.7,3688.6,0.001]
[1753450848724,6.26098218,3688.7,3688.6,0.001]
[1753450848939,6.74508218,3688.7,3688.6,0.001]
[1753450849136,5.71098218,3688.7,3688.6,0.001]
[1753450849347,3.0,3688.7,3688.6,0.001]
[1753450849747,3.0,3688.7,3688.1,0.001]
[1753450849748,2.71105568,3688.6,3688.1,1e-08]
[1753450849950,5.329,3689.7,3688.1,1e-08]
[1753450849951,2.71125084,3688.4,3688.1,1e-08]
[1753450850155,3.0,3688.2,3688.1,1e-08]
[1753450850621,2.71084459,3688.9,3688.1,1e-08]
[1753450850815,3.48611304,3689.4,3688.2,2.7113497]
[1753450851053,0.7756,3689.4,3688.3,1.274]
[1753450851218,3.0,3689.4,3688.1,1e-08]
[1753450851553,5.7113497,3688.2,3688.1,1e-08]
[1753450852058,3.0,3688.2,3688.1,1e-08]
[1753450852799,3.1352,3688.2,3688.1,1e-08]
[1753450853171,5.8465497,3688.2,3688.1,1e-08]
[1753450853379,3.1352,3688.2,3688.1,1e-08]
[1753450855591,0.4841,3689.0,3688.1,1e-08]
[1753450855592,3.0,3688.4,3688.1,1e-08]
[1753450855789,2.84648548,3688.3,3688.1,1e-08]
[1753450856019,2.84648548,3688.3,3687.4,0.7612]
[1753450856020,7.0826497,3688.2,3684.6,0.7933]
[1753450856185,7.0826497,3688.2,3686.2,0.4491]
[1753450856186,0.136,3687.2,3686.2,0.4491]
[1753450856384,0.136,3687.2,3685.8,0.6334]
[1753450856385,6.39808505,3687.2,3685.8,4.7904]
[1753450856602,6.88218505,3687.2,3685.8,4.7904]
[1753450856928,6.88218505,3687.2,3685.9,0.136]
[1753450856929,7.69738505,3687.2,3685.9,0.136]
[1753450857082,8.44930535,3687.2,3687.1,1e-08]
[1753450857720,8.44930535,3687.2,3685.1,0.136]
[1753450857892,8.44930535,3687.2,3684.5,0.14295658]
[1753450857893,0.136,3685.2,3684.7,0.4491]
[1753450858092,0.7875,3686.0,3684.8,5.7845]
[1753450858093,1.2716,3686.0,3684.8,5.7845]
[1753450858407,3.0,3685.6,3684.8,0.4491]
[1753450858613,3.0,3685.6,3684.9,4.842]
[1753450858614,2.71329378,3685.6,3684.9,4.842]
[1753450858813,2.71329378,3685.6,3685.0,4.842]
[1753450859021,0.55,3685.9,3684.8,0.9465]
[1753450859244,2.71349626,3685.3,3684.8,0.4491]
[1753450859544,3.0,3685.3,3684.8,0.4491]
[1753450859707,2.71361127,3685.2,3684.5,0.14295658]
[1753450860030,0.4841,3685.3,3684.6,4.838]
[1753450860332,0.4841,3685.3,3684.5,0.14295658]
[1753450860333,3.0,3685.5,3684.7,4.836]
[1753450860532,0.7875,3686.0,3684.7,7.99895576]
[1753450860533,0.55,3685.9,3684.7,7.99895576]
[1753450860731,0.55,3685.9,3684.5,0.14295658]
[1753450860732,3.0,3685.1,3684.5,0.14295658]
[1753450861029,0.4841,3685.8,3684.6,0.4491]
[1753450861228,0.4841,3685.8,3685.1,2.71359963]
[1753450861436,0.7942,3686.5,3685.2,0.4491]
[1753450861596,0.4841,3686.8,3685.3,0.4974]
[1753450861792,0.4841,3686.8,3685.4,0.4491]
[1753450861993,0.7942,3687.0,3685.4,0.47623409]
[1753450862268,0.4841,3687.3,3685.5,0.4974]
[1753450862441,0.7618,3687.5,3685.8,0.7764]
[1753450862596,2.71201149,3687.3,3685.9,0.56144]
[1753450862795,3.7745,3687.2,3685.4,0.4491]
[1753450863039,0.55,3686.8,3685.0,4.837]
[1753450863242,0.8279,3686.9,3685.0,4.837]
[1753450863243,3.26283436,3686.2,3685.3,2.71342446]
[1753450863459,3.55,3685.9,3683.0,8.3723769]
[1753450863663,0.8279,3685.7,3684.2,2.71422827]
[1753450863868,0.55,3685.6,3683.1,0.83723769]
[1753450864156,0.7852,3684.6,3683.4,4.836]
[1753450864361,0.7852,3684.6,3683.2,4.836]
[1753450864525,0.7852,3684.6,3682.4,6.513]
[1753450864526,1.3352,3685.1,3683.3,4.835]
[1753450864726,2.7137042,3685.0,3683.3,4.835]
[1753450864926,0.7852,3685.1,3683.4,0.47624882]
[1753450865127,0.7857,3686.1,3683.6,2.71473558]
[1753450865342,0.55,3685.7,3684.8,2.71382171]
[1753450865544,0.55,3686.0,3684.8,4.83]
[1753450865745,0.7857,3686.6,3684.9,0.47623777]
[1753450865920,0.7857,3686.6,3685.0,0.7892]
[1753450866122,0.7857,3686.6,3685.1,4.827]
[1753450866316,0.7857,3686.6,3685.1,5.2905]
[1753450866519,2.71209491,3687.2,3685.1,5.2905]
[1753450866520,0.7571,3687.2,3685.3,0.7868]
[1753450866762,0.27157678,3687.8,3685.2,0.4635]
[1753450866763,0.27157678,3687.8,3685.5,0.8211]
[1753450866928,0.8889,3688.9,3685.5,0.8211]
[1753450866929,0.453,3688.9,3687.7,0.8211]
[1753450867130,2.71148665,3688.1,3687.7,5.6511]
[1753450867474,0.2024342,3689.6,3687.8,0.49061643]
[1753450867622,2.71046389,3689.5,3687.9,0.0271157]
[1753450867824,1.2862,3690.2,3688.0,0.4635]
[1753450868133,2.71054586,3689.3,3688.0,0.4635]
[1753450868356,0.1352,3688.9,3688.4,0.1352]
[1753450868660,0.1352,3688.9,3688.0,0.4635]
[1753450868961,3.0,3687.9,3687.8,4.835]
[1753450869167,3.0,3687.9,3687.4,0.4635]
[1753450869168,0.1352,3687.9,3687.4,0.4635]
[1753450869349,3.0,3687.6,3687.2,0.821]
[1753450869550,0.1352,3687.6,3687.2,0.821]
[1753450869766,3.0,3687.5,3687.0,4.833]
[1753450869936,3.0,3687.5,3686.7,1.2664]
[1753450869937,0.70638421,3687.4,3686.9,6.65]
[1753450870143,0.70638421,3687.4,3686.2,0.8029]
[1753450870144,0.57118421,3687.4,3686.2,0.8029]
[1753450870322,2.71231651,3686.9,3686.1,4.831]
[1753450870662,2.71231651,3686.9,3685.6,10.49266008]
[1753450870663,1.3611,3686.7,3685.6,12.2829]
[1753450870824,2.71318881,3685.7,3685.6,11.344]
[1753450871036,2.71346773,3685.4,3685.0,0.9389]
[1753450871240,2.71291526,3686.1,3685.0,0.9389]
[1753450871241,0.136,3685.5,3685.0,0.9389]
[1753450871560,0.136,3685.5,3685.1,0.4635]
[1753450871942,2.71301746,3686.0,3685.2,0.4635]
[1753450872141,2.71326242,3685.6,3685.2,0.5995]
[1753450872472,3.0,3685.6,3685.2,0.4635]
[1753450872686,2.84930219,3685.6,3685.2,0.4635]
[1753450872844,2.71336832,3685.5,3685.0,0.9389]
[1753450873176,3.0,3685.6,3685.2,0.136]
[1753450873352,0.136,3685.7,3685.2,0.136]
[1753450873548,2.71239801,3686.8,3685.3,0.4635]
[1753450873748,0.13611,3686.4,3685.5,0.136]
[1753450873969,3.0,3686.2,3685.8,0.136]
[1753450874277,0.136,3686.3,3685.5,0.136]
[1753450874278,3.0,3685.9,3685.5,0.136]
[1753450874462,0.136,3686.0,3685.5,0.5995]
[1753450874663,3.0,3685.8,3685.5,0.5995]
[1753450874869,0.58490541,3685.8,3685.4,4.813]
[1753450875069,0.13611,3686.4,3685.4,4.813]
[1753450875070,2.71274719,3686.3,3685.5,2.71333352]
[1753450875368,3.136,3685.9,3685.5,0.4635]
[1753450875541,0.13611,3686.4,3685.4,4.949]
[1753450875745,0.136,3685.9,3685.4,7.66238586]
[1753450876066,3.0,3686.1,3685.5,3.17680782]
[1753450876266,3.4359,3687.2,3685.8,2.71309353]
[1753450876486,0.136,3686.5,3686.0,0.9354]
[1753450876784,0.136,3686.6,3686.0,0.9354]
[1753450876964,2.71224479,3687.0,3686.3,2.71273968]
[1753450877170,0.7705,3687.2,3686.3,0.136]
[1753450877171,0.136,3686.8,3686.3,0.136]
[1753450877368,0.136,3686.8,3686.4,0.4635]
[1753450877566,0.136,3686.8,3686.3,4.941]
[1753450877870,0.002,3687.2,3686.7,2.84844153]
[1753450878180,0.002,3687.2,3686.9,0.136]
[1753450878380,0.002,3687.2,3687.1,2.7121586]
[1753450878592,0.002,3687.2,3687.1,0.136]
[1753450878796,0.002,3687.2,3687.1,4.935]
[1753450878999,0.002,3687.2,3687.1,5.3985]
[1753450879767,0.002,3687.2,3687.1,0.136]
[1753450879981,0.002,3687.2,3687.1,4.931]
[1753450880203,0.002,3687.2,3687.1,5.3945]
[1753450880360,2.7121586,3687.1,3686.4,1.2851]
[1753450880557,0.136,3686.8,3686.5,4.793]
[1753450880794,2.71252644,3686.6,3686.5,4.793]
[1753450881104,2.71252644,3686.6,3686.1,0.136]
[1753450881105,3.136,3686.6,3686.1,0.136]
[1753450881270,0.002,3687.2,3684.9,0.4635]
[1753450881271,0.7633,3686.1,3684.9,0.4635]
[1753450881475,3.0,3685.7,3684.9,4.926]
[1753450881782,3.0,3685.1,3684.9,4.926]
[1753450882098,3.0,3685.2,3685.0,0.4635]
[1753450882398,2.71366297,3685.1,3684.8,0.136]
[1753450882693,3.0,3685.1,3684.9,4.789]
[1753450882878,2.8497042,3685.0,3684.9,4.789]
[1753450883084,2.84972904,3685.0,3684.8,4.786]
[1753450883394,3.0,3685.1,3684.7,4.784]
[1753450883395,2.71363056,3685.1,3684.7,4.784]
[1753450883602,2.84990606,3684.8,3684.7,4.784]
[1753450884109,0.136,3685.0,3684.7,4.784]
[1753450884470,0.136,3685.0,3684.8,2.71384808]
[1753450884670,3.0,3685.1,3684.7,4.92]
[1753450884891,0.136,3685.2,3684.7,4.92]
[1753450885306,0.136,3685.2,3685.1,2.71363056]
[1753450885503,0.453,3686.5,3685.1,0.1631363]
[1753450885800,2.84935812,3685.5,3685.0,0.136]
[1753450885961,0.453,3686.5,3685.1,0.4635]
[1753450885962,3.0,3686.1,3685.1,0.4635]
[1753450886295,0.136,3686.0,3685.4,0.136]
[1753450886661,0.136,3686.1,3685.6,0.136]
[1753450886855,3.0,3685.9,3685.7,4.773]
[1753450887091,3.0,3686.3,3685.5,7.48333604]
[1753450887303,0.70376736,3686.3,3685.4,7.48435236]